Cogmind - Beta 14 @@@ ROGUE MODE // 2024.11.19 @ 19:43:45 Player: BUDA Result: Destroyed by Y-72 Warden with Railgun Performance ------------- Evolutions (7) 3500 Regions Visited (18) 3600 Robots Destroyed (294) 1470 Value Destroyed (10478) 10478 Prototype IDs (24) 480 Alien Tech Used (5) 1000 Bonus (11715) 11715 TOTAL SCORE: 32243 Bonus ------- High Alert Combat Kills 853 Follower Combat Kills 3333 Network Hubs Disabled 200 Registered with UFD 300 Built Enhanced Grunts 300 Met R17 at Cetus 500 Used Core Reset Matrix 3000 Met R17 at Research 2000 Scanned by Researcher 500 Met Sigix 2000 Friendly Fire -1271 Cogmind --------- Core Integrity 0/1300 Matter 299/300 Energy 65/100 System Corruption 5% Temperature Cool (9) Movement Core (50) Location -3/Section 7 Parts ------- > --- POWER (2) -------- (None) > --- PROPULSION (6) --- Improved Gyrokinetic Inverter > --- UTILITY (10) ----- (None) > --- WEAPON (3) ------- (None) > --- INVENTORY (5) ---- Advanced Signal Interpreter Surveybot 17 Chip Antimissile System Quantum Rifle Peak State ------------ > --- POWER ------------ Light Antimatter Reactor Light Antimatter Reactor > --- PROPULSION ------- Advanced Medium Treads Improved Heavy Siege Treads Centrium Heavy Treads Combat Antigrav System > --- UTILITY ---------- Advanced Cryofiber Web Advanced Heat Sink Advanced Coolant Injector Huge Storage Unit Advanced Targeting Computer Energy Filter Improved Transmission Jammer Improved Heavy Armor Plating Centrium Medium Armor Plating > --- WEAPON ----------- Quantum Rifle Sigix Broadsword > --- INVENTORY -------- Particle Reactor Quantum Reactor Armored Medium Treads Advanced Medium Treads Armored Heavy Treads Advanced Coolant Injector Advanced Signal Interpreter Surveybot 17 Chip Advanced Particle Charger Layered Light Armor Plating Centrium Medium Armor Plating Advanced Force Field Antimissile System Long-range Tractor Beam Cooled Plasma Rifle Dispersion Rifle Quantum Rifle KE Penetrator Railgun Railgun Advanced KE Penetrator Advanced KE Penetrator Improved Proton Missile Launcher Mini Grenade Launcher [Rating: 168] Favorites ----------- Power Light Nuclear Core Engine Light Angular Momentum Engine Power Core Light Nuclear Core Reactor Light Antimatter Reactor Propulsion Light Treads Treads Light Treads Leg Aluminum Leg Wheel Overtuned Scrapsphere Hover Unit Combat Antigrav System Utility Huge Storage Unit Device Advanced Heat Sink Storage Huge Storage Unit Processor Visual Processing Unit Hackware Hacking Suite Protection Improved Light Armor Plating Weapon High-powered Shotgun Energy Gun Pulse Rifle Energy Cannon Heavy Plasma Cannon Ballistic Gun High-powered Shotgun Launcher Mini Grenade Launcher Impact Weapon Heavy Mace Slashing Weapon Sigix Broadsword Build | -11 -10 -10 -9 -9 -8 -8 -8 -8 -6 -6 -6 -6 -6 -5 -4 -3 -3 -3 ------- Run | Yrd Mat Min Mat Min Mat Sto Rec Scr Fac Ext Cet Arc Hub Fac Fac Res Qua Sec Slots Evolved 14 | . . . 2 . 2 . . . 4 . . . . 2 2 2 . . Power 1 | . . . . . . . . . 1 . . . . . . . . . Propulsion 4 | . . . 1 . . . . . 1 . . . . . 2 . . . Utility 8 | . . . . . 2 . . . 2 . . . . 2 . 2 . . Weapon 1 | . . . 1 . . . . . . . . . . . . . . . Parts Attached 287 | 6 10 8 24 3 24 19 12 14 36 24 9 2 . 26 7 21 31 11 Power 39 | 1 2 . 5 . 3 1 2 2 4 6 2 1 . 2 2 3 2 1 Engine 13 | 1 2 . 4 . 1 . . . 1 4 . . . . . . . . Core 18 | . . . 1 . 2 1 2 2 3 2 1 1 . 2 1 . . . Reactor 8 | . . . . . . . . . . . 1 . . . 1 3 2 1 Propulsion 64 | 2 4 5 7 . 5 7 4 3 8 1 1 . . 2 2 5 6 2 Treads 47 | 2 2 1 5 . 5 7 4 3 6 1 1 . . 1 2 4 3 . Leg 3 | . . 2 . . . . . . . . . . . . . . . 1 Wheel 9 | . 2 2 2 . . . . . 2 . . . . 1 . . . . Hover 5 | . . . . . . . . . . . . . . . . 1 3 1 Flight . | . . . . . . . . . . . . . . . . . . . Utility 100 | 1 2 . 3 1 5 5 4 4 18 9 2 1 . 13 2 10 15 5 Device 45 | . . . . 1 1 2 1 1 10 5 . 1 . 9 1 5 6 2 Storage 3 | 1 1 . . . . . . 1 . . . . . . . . . . Processor 9 | . . . 2 . 1 . 1 1 . . . . . 1 . . 1 2 Hackware 3 | . . . . . . . . . 1 . . . . . . 1 1 . Protection 40 | . 1 . 1 . 3 3 2 1 7 4 2 . . 3 1 4 7 1 Artifact . | . . . . . . . . . . . . . . . . . . . Weapon 84 | 2 2 3 9 2 11 6 2 5 6 8 4 . . 9 1 3 8 3 Energy Gun 26 | 1 . . 3 . 3 1 . 1 2 2 1 . . 4 1 2 3 2 Energy Cannon 10 | . . . 1 . . 1 1 . 1 1 1 . . 1 . . 2 1 Ballistic Gun 26 | 1 2 3 2 1 2 2 . 4 2 2 1 . . 1 . 1 2 . Ballistic Cannon . | . . . . . . . . . . . . . . . . . . . Launcher 14 | . . . 3 1 4 2 1 . . 2 . . . 1 . . . . Special Weapon . | . . . . . . . . . . . . . . . . . . . Impact Weapon 7 | . . . . . 2 . . . 1 1 1 . . 2 . . . . Slashing Weapon 1 | . . . . . . . . . . . . . . . . . 1 . Piercing Weapon . | . . . . . . . . . . . . . . . . . . . Special Melee Weapon . | . . . . . . . . . . . . . . . . . . . Unidentified Prototypes 18 | . . . 1 1 2 1 . . . . 4 1 . 1 . . 5 2 Corrupted Parts 3 | . . . . . . . . . . . 1 . . 2 . . . . System Corruption 13 | . . . . . . . . . . . 2 . . 11 . . . . Parts Lost 66 | . 1 5 9 . 1 2 2 . 10 4 2 . . 4 5 1 10 10 Power 16 | . 1 1 1 . 1 1 1 . 2 1 1 . . 2 1 . 1 2 Propulsion 17 | . . 2 5 . . . 1 . 3 1 1 . . . 1 . 1 2 Utility 19 | . . . 2 . . 1 . . 1 1 . . . 2 3 . 5 4 Weapon 14 | . . 2 1 . . . . . 4 1 . . . . . 1 3 2 Highest Loss Streak 5 | . 1 4 2 . 1 2 1 . 5 2 2 . . 2 2 1 3 4 To Critical Strikes 1 | . . . . . . . . . . . 1 . . . . . . . Average Slot Usage (%) 90 | . 94 84 96 100 99 99 97 86 95 92 77 81 86 87 81 83 80 47 Engine 2 | . 13 . 5 . . . . . 2 8 1 . . . . . . . Core 6 | . . . 5 11 8 8 8 8 10 4 5 6 6 7 8 . . . Reactor 1 | . . . . . . . . . . . 1 6 6 2 1 9 8 5 Treads 18 | . 19 . 12 33 27 27 26 27 19 13 6 6 6 5 11 13 13 . Wheel 5 | . 8 9 18 . . . . . 6 13 13 13 13 11 7 1 . . Device 11 | . . . . 7 17 18 12 . 13 18 13 15 20 25 19 22 18 12 Storage 7 | . 14 14 11 11 9 9 9 8 6 6 6 6 6 5 5 4 3 . Processor 5 | . . . 6 . . . 5 17 4 . . . . 1 5 4 6 7 Protection 7 | . 9 14 4 3 8 9 9 8 8 6 10 6 6 6 5 8 8 2 Energy Gun 7 | . 3 . 11 22 17 14 8 2 7 8 2 6 6 7 8 9 3 1 Energy Cannon 1 | . . . 1 . . 3 8 . 1 3 1 . . 1 . . 1 1 Ballistic Gun 9 | . 24 27 17 10 7 8 8 12 9 5 11 13 13 2 1 3 3 . Peak Build Rating 168 | 6 9 9 21 27 38 39 40 45 65 71 95 105 105 118 127 155 168 125 Average Rating 58 | 4 7 7 16 24 36 36 34 39 60 67 85 98 105 109 122 147 156 79 On Entrance 59 | . 6 9 8 21 26 36 39 24 45 60 66 95 105 105 108 112 153 115 Naked Turns 44 | . . . . . . . . . . . . . . . . . . 44 Heaviest Build 171 | 12 88 86 96 107 114 114 113 100 123 135 137 143 143 154 138 153 171 47 Greatest Support 190 | 40 40 32 60 60 63 63 62 80 112 16 80 80 80 80 188 190 185 52 Greatest Overweight (x) 13 | . 3 8 9 1 2 1 1 1 13 8 8 8 8 9 . . 1 1 Average Overweight (x) 2 | . 1 3 2 1 1 1 1 . 3 7 5 6 6 3 . . . . Largest Inventory Capacity 25 | 8 25 25 25 25 25 25 25 25 25 25 25 25 25 25 25 25 25 5 Average Capacity 24 | 6 17 25 25 25 25 25 25 24 25 25 25 25 25 25 25 25 23 5 Most Carried 25 | 4 18 19 25 25 25 25 25 25 25 25 25 25 25 25 25 25 25 5 Average Carried 22 | 2 9 18 23 25 24 24 22 24 23 23 23 24 24 23 23 24 22 4 Final Capacity 25 | 8 25 25 25 25 25 25 25 25 25 25 25 25 25 25 25 25 5 5 Final Carried 25 | 4 18 19 25 25 25 25 24 25 24 19 25 25 25 24 23 25 5 4 Class Distribution -------------------- 20% | Commander-Mutant 19% | Scavenger-Tank 14% | Commander-Tank 13% | Scavenger-Mutant 10% | Tank 8% | Mutant 5% | Gunner 3% | Scavenger-Scrapper Dominant Class ---------------- Mutant | -10/Materials Mutant | -10/Mines Tank | -9/Materials Gunner | -9/Mines Tank | -8/Materials Commander-Tank | -8/Storage Commander-Tank | -8/Recycling Commander-Mutant | -8/Scraptown Scavenger-Scrapper | -6/Factory Scavenger-Tank | -6/Extension Scavenger-Tank | -6/Cetus Scavenger-Tank | -6/Archives Scavenger-Tank | -6/Hub_04(d) Scavenger-Mutant | -5/Factory Scavenger-Mutant | -4/Factory Scavenger-Tank | -3/Research Scavenger-Mutant | -3/Quarantine Scavenger-Mutant | -3/Section 7 Resources | -11 -10 -10 -9 -9 -8 -8 -8 -8 -6 -6 -6 -6 -6 -5 -4 -3 -3 -3 ----------- Run | Yrd Mat Min Mat Min Mat Sto Rec Scr Fac Ext Cet Arc Hub Fac Fac Res Qua Sec Matter Collected 5836 | 198 236 105 566 82 351 344 367 62 804 914 145 42 79 294 99 306 745 97 Remotely . | . . . . . . . . . . . . . . . . . . . Salvage Created 13072 | 12 441 151 1575 150 452 503 972 . 1511 2157 . 63 562 1053 856 528 1929 157 Parts 631 | . 36 13 103 11 44 21 38 . 67 97 . 3 15 43 27 24 88 1 Haulers Intercepted 11 | . 1 . 3 . 1 4 . . . . . . 2 . . . . . Recyclers Shooed 7 | . . . 1 . 1 . 2 . 1 1 . . . . . . 1 . Parts Field Recycled . | . . . . . . . . . . . . . . . . . . . Retrieved Matter . | . . . . . . . . . . . . . . . . . . . Parts Self-Destructed . | . . . . . . . . . . . . . . . . . . . Prevented . | . . . . . . . . . . . . . . . . . . . Kills | -11 -10 -10 -9 -9 -8 -8 -8 -8 -6 -6 -6 -6 -6 -5 -4 -3 -3 -3 ------- Run | Yrd Mat Min Mat Min Mat Sto Rec Scr Fac Ext Cet Arc Hub Fac Fac Res Qua Sec Combat Hostiles Destroyed 199 | . 12 5 36 . 19 3 11 . 22 21 . 1 3 22 13 7 24 . Melee 1 | . . . . . . . . . . . . . . . . . 1 . Guns 128 | . 12 5 23 . 9 1 5 . 15 15 . 1 1 10 8 6 17 . Cannons 19 | . . . 2 . . . 3 . 3 4 . . . 4 . . 3 . AOE 31 | . . . 11 . 9 2 3 . 1 . . . 1 4 . . . . Classes Destroyed 20 | 1 4 1 5 . 1 1 2 . 2 1 . . . . . . 2 . Worker 18 | . . 1 1 . . 2 . . 6 1 . . 5 . 1 . 1 . Builder 11 | . . . 1 1 . . . . 1 4 . . 1 1 1 1 . . Tunneler 14 | 1 . . . 2 . . . . . 10 . . . 1 . . . . Hauler 11 | . 1 . 3 . 1 4 . . . . . . 2 . . . . . Recycler 15 | . . . 1 . . 1 6 . 1 5 . . . . . . . 1 Mechanic 1 | . . . 1 . . . . . . . . . . . . . . . Operator 4 | . . . 1 . 1 . . . . 1 . . . . . . 1 . Watcher 15 | . 2 . 2 . 3 . . . 1 1 . . 2 2 . . 2 . Swarmer 49 | . 6 3 4 . 15 . . . . 5 . . . 11 4 1 . . Grunt 82 | . 6 2 25 . . 5 2 . 13 6 . . 2 2 5 4 10 . Brawler 3 | . . . . . . 1 2 . . . . . . . . . . . Duelist 1 | . . . . . . . . . 1 . . . . . . . . . Protector 3 | . . . . . . . . . 2 . . . . . . . 1 . Researcher 1 | . . . . . . . . . . . . . . . . . 1 . Sentry 26 | . . . 7 . 3 . . . 3 5 . 1 . 2 3 2 . . Demolisher 1 | . . . . . . . 1 . . . . . . . . . . . Specialist 1 | . . . . . . . . . . 1 . . . . . . . . Hunter 12 | . . . . . 1 . 2 . 1 4 . . 1 3 . . . . Programmer 22 | . . . . . . . 4 . 4 . . . . 4 1 . 9 . Q-Series 1 | . . . . . . . . . . . . . . . . . 1 . Lightning 3 | . . . . . . . . . . . . . . . . . 3 . Savage 1 | . . . . . . . . . . 1 . . . . . . . . Best Kill Streak 10 | 1 4 3 7 1 4 2 6 . 4 5 . 1 10 7 4 4 6 1 Combat Bots Only 6 | . 4 3 4 . 4 2 5 . 3 4 . 1 3 6 4 4 5 . Max Kills in Single Turn 7 | 1 1 1 2 1 4 3 1 . 2 2 . 1 7 3 1 2 2 1 Gunslinging 1 | . . . . . . . . . . . . . . . . 1 1 . Exploded 4 | . . . 2 . 4 2 1 . 1 . . . 1 2 . . . . Melee 1 | . . . . . . . . . . . . . . . . . 1 . Uniques/NPCs Destroyed . | . . . . . . . . . . . . . . . . . . . Combat | -11 -10 -10 -9 -9 -8 -8 -8 -8 -6 -6 -6 -6 -6 -5 -4 -3 -3 -3 -------- Run | Yrd Mat Min Mat Min Mat Sto Rec Scr Fac Ext Cet Arc Hub Fac Fac Res Qua Sec Hostile Shots Fired 1750 | . 64 34 101 . 83 32 75 . 234 202 36 1 60 187 143 61 296 141 Missed 496 | . 11 7 25 . 33 8 26 . 69 68 14 1 19 62 34 18 43 58 Damage Taken 23758 | . 603 322 1006 . 574 731 821 . 2744 2077 580 . 430 2255 2440 935 6051 2189 Core 2537 | . 122 58 157 . 112 111 73 . 105 253 12 . 50 143 91 41 159 1050 Absorbed by Shields 1036 | . . . . . . . . . 9 151 73 . . . . . 803 . Reduced by Siege Mode 799 | . . . . . . . . . . . . . 6 . 112 26 655 . Redirected to Shielding 107 | . 12 28 11 . . . . . 50 . . . . . . . 6 . Ignored by Resistances 155 | . . . . . . . . . 48 . . . 81 26 . . . . Regen/Repaired (Parts) 844 | . . . . . . . . . 63 233 30 . . 1 . . 517 . Core Remaining (%) 65 | 100 . 28 . 60 . . . 46 . . . . 50 85 92 . . . Volleys Fired 836 | 1 50 27 114 8 44 25 34 . 86 103 8 2 11 82 64 32 136 9 Largest 3 | 2 2 2 3 3 3 3 3 . 3 3 3 3 3 2 2 3 3 1 Hottest 312 | 60 60 40 176 128 154 154 154 . 203 199 199 143 143 163 312 153 164 94 Shots Fired 1780 | 2 98 50 267 16 104 56 86 . 251 283 24 6 34 120 112 71 192 8 Gun 1605 | 2 98 50 247 12 101 46 54 . 230 252 16 6 34 105 112 71 162 7 Cannon 142 | . . . 7 . . 7 26 . 21 29 8 . . 13 . . 30 1 Launcher 33 | . . . 13 4 3 3 6 . . 2 . . . 2 . . . . Special . | . . . . . . . . . . . . . . . . . . . Kinetic 751 | 1 78 50 167 4 35 15 28 . 118 99 11 4 23 . 2 23 93 . Thermal 834 | 1 20 . 32 4 60 38 52 . 118 182 13 2 11 67 110 48 69 7 Explosive 31 | . . . 13 4 3 3 6 . . . . . . 2 . . . . Electromagnetic 164 | . . . 55 4 6 . . . 15 2 . . . 51 . . 30 1 Robot Hit Streak 35 | 1 11 7 14 6 11 9 9 . 12 11 7 3 7 14 22 12 35 . Robot Miss Streak 7 | . 3 3 6 1 3 4 7 . 5 6 3 1 3 4 2 7 2 1 Penetration Max 1 | . . . . . 1 . . . 1 1 1 . . . 1 1 1 . Secondary Targets 14 | . . 1 1 . 1 . . . 1 2 . . . 2 1 1 4 . Max Gunslinging Chain 1 | . . 1 1 . 1 . . . 1 1 . . . 1 1 1 1 . Capacitor 11 | . . . . . . . . . . . . . . . . . 5 6 Shots Hit Robots 1147 | 1 61 34 168 5 67 31 45 . 156 153 16 4 19 86 74 52 175 . Core Hits 564 | 1 28 13 96 5 30 25 33 . 71 80 3 3 22 43 27 25 58 1 Critical Kills 14 | . . . . . . 1 . . 2 3 . . 1 . . . 7 . Critical Parts Destroyed 20 | . 2 . 1 . 1 . . . 2 1 . . . . . . 13 . Critical Strikes 66 | . 2 . 4 . 4 3 1 . 10 7 . . 1 8 2 1 23 . Burn 29 | . . . 3 . 3 2 1 . 5 3 . . . 8 2 1 1 . Meltdown 3 | . . . . . . 1 . . 1 1 . . . . . . . . Destroy 31 | . 2 . 1 . 1 . . . 3 3 . . 1 . . . 20 . Corrupt 1 | . . . . . . . . . 1 . . . . . . . . . Sever 2 | . . . . . . . . . . . . . . . . . 2 . Melee Attacks 112 | . . . . . 5 . . . 4 80 . . . 4 . . 19 . Impact 93 | . . . . . 5 . . . 4 80 . . . 4 . . . . Slashing 19 | . . . . . . . . . . . . . . . . . 19 . Piercing . | . . . . . . . . . . . . . . . . . . . Sneak Attacks 1 | . . . . . . . . . . 1 . . . . . . . . Combat Hostiles . | . . . . . . . . . . . . . . . . . . . Follow-up Attacks . | . . . . . . . . . . . . . . . . . . . Damage Inflicted 31241 | 11 538 276 3182 111 1829 1095 1377 . 3888 4325 551 123 1788 2414 2131 1516 6009 77 Guns 22680 | 11 538 276 1865 65 1253 578 806 . 3247 3446 330 123 480 1850 2071 1516 4225 . Cannons 3263 | . . . 143 . . 81 313 . 433 701 221 . . 267 . . 1104 . Explosions 4265 | . . . 1174 46 576 436 258 . 170 . . . 1308 297 . . . . Melee 770 | . . . . . . . . . . 107 . . . . . . 663 . Ramming 263 | . . . . . . . . . 38 71 . . . . 60 . 17 77 Kinetic 9297 | . 434 276 778 . 397 285 331 . 1674 1372 241 93 322 . 60 532 2502 . Thermal 13997 | 11 104 . 498 18 800 374 788 . 1921 2775 310 30 158 1492 2011 984 1723 . Explosive 2686 | . . . 1122 46 527 436 258 . . . . . . 297 . . . . Electromagnetic 4228 | . . . 784 47 105 . . . 255 . . . 1308 625 . . 1104 . Impact 107 | . . . . . . . . . . 107 . . . . . . . . Slashing 663 | . . . . . . . . . . . . . . . . . 663 . Piercing . | . . . . . . . . . . . . . . . . . . . Highest Corruption 48 | . . . . . . 2 4 4 4 3 5 5 5 15 5 . 48 48 Average Corruption 7 | . . . . . . 2 3 4 2 2 4 5 5 4 3 . 38 7 Corruption Purged 4 | . . . . . . . . . 4 . . . . . . . . . Corruption Blocked 3 | . . . . . 3 . . . . . . . . . . . . . Effects 197 | . . . . . . 11 26 2 2 59 11 2 11 3 3 . 63 4 Message Errors 36 | . . . . . . 1 6 . 1 13 . . . 1 . . 14 . Matter Fused 55 | . . . . . . 4 12 . 1 14 4 1 4 1 . . 13 1 Heat Flow Errors 26 | . . . . . . 2 2 1 . 12 1 . 3 . . . 5 . Energy Discharges 22 | . . . . . . 4 2 . . 6 2 1 1 . . . 6 . Parts Rejected 3 | . . . . . . . . . . . 1 . . . . . 2 . Parts Fused 2 | . . . . . . . 1 . . 1 . . . . . . . . Data Loss (minor) 18 | . . . . . . . 2 1 . 3 2 . 2 1 1 . 5 1 Data Loss (major) 12 | . . . . . . . 1 . . 6 . . . . 1 . 4 . Misfires 6 | . . . . . . . . . . 2 . . 1 . 1 . 2 . Alerts 2 | . . . . . . . . . . . 1 . . . . . . 1 Misdirections 2 | . . . . . . . . . . . . . . . . . 2 . Weapon Failures 13 | . . . . . . . . . . 2 . . . . . . 10 1 Overload Shots 15 | . . . . . . . . . . . . . . . 4 2 3 6 Effects 2 | . . . . . . . . . . . . . . . . . 1 1 Heat Surge 2 | . . . . . . . . . . . . . . . . . 1 1 Overflow Damage 318 | . . . 8 . 31 . 14 . 82 92 . . 17 30 . . 35 9 Projectiles 42 | . . . . . . . 8 . 8 11 . . . . . . 15 . Explosions 156 | . . . 8 . 31 . 6 . 64 . . . 17 30 . . . . Melee 120 | . . . . . . . . . 10 81 . . . . . . 20 9 Knockbacks 4 | . . . . . . . . . 1 1 . . . . . . 1 1 Impact 4 | . . . . . . . . . 1 1 . . . . . . 1 1 Kinetic . | . . . . . . . . . . . . . . . . . . . Secondary . | . . . . . . . . . . . . . . . . . . . Self-Inflicted Damage 533 | . . . 45 . 60 35 . . 218 34 . . 104 . . . . 37 Shots 9 | . . . 2 . 2 1 . . 3 . . . 1 . . . . . Rammed 20 | . . . . . . . . . 3 4 . . . . 3 . 2 8 Targets Rammed 20 | . . . . . . . . . 3 4 . . . . 3 . 2 8 Kicked . | . . . . . . . . . . . . . . . . . . . Crushed . | . . . . . . . . . . . . . . . . . . . Highest Temperature 766 | 20 271 21 387 70 135 223 276 132 410 766 242 33 271 60 157 7 140 121 Average Temperature 89 | 15 105 8 84 33 42 34 97 79 116 112 57 19 74 12 65 6 78 51 Received Heat Transfer 3826 | . 240 153 471 . 72 153 72 . 748 776 54 . 126 75 399 120 289 78 Effects 14 | . 3 . 2 . . . . . 3 6 . . . . . . . . Shutdowns 3 | . . . 1 . . . . . . 2 . . . . . . . . Energy Bleed 1 | . . . . . . . . . 1 . . . . . . . . . Interference 4 | . 3 . 1 . . . . . . . . . . . . . . . Matter Decay 3 | . . . . . . . . . 2 1 . . . . . . . . Damage (minor) 2 | . . . . . . . . . . 2 . . . . . . . . Damage (core) 1 | . . . . . . . . . . 1 . . . . . . . . Siege Activations 17 | . . . . . . . . . . . 1 . 1 1 3 3 8 . Total Turns 386 | . . . . . . . . . . . 4 . 2 2 56 35 287 . Longest Duration 106 | . . . . . . . . . . . 4 . 2 2 46 14 106 . Robots Corrupted 11 | . . . . . . . . . . 2 . . 2 3 . . 3 1 Combat Hostiles 7 | . . . . . . . . . . . . . 1 3 . . 3 . Parts Fried 38 | . . . . . . . . . 1 9 . . 9 3 . . 14 2 Impact Corruptions 6 | . . . . . . . . . 1 4 . . . . . . . 1 Robots Melted 14 | . . . . . 1 1 . . 3 2 . . . 1 5 1 . . Combat Hostiles 13 | . . . . . 1 . . . 3 2 . . . 1 5 1 . . Parts Melted 66 | . . . 3 . 7 1 . . 5 13 . . 1 13 16 4 3 . Heat Transferred 25431 | 25 225 . 1258 37 1863 888 1425 . 3578 4793 498 37 222 3300 3382 1729 2171 . Parts Sabotaged 1 | . . . . . . . . . . . . . . . 1 . . . Parts Stolen . | . . . . . . . . . . . . . . . . . . . Parts Stripped . | . . . . . . . . . . . . . . . . . . . Power Chain Reactions 4 | . . . . . 1 . . . 1 2 . . . . . . . . Alert | -11 -10 -10 -9 -9 -8 -8 -8 -8 -6 -6 -6 -6 -6 -5 -4 -3 -3 -3 ------- Run | Yrd Mat Min Mat Min Mat Sto Rec Scr Fac Ext Cet Arc Hub Fac Fac Res Qua Sec Peak Influence 1295 | 5 291 65 797 310 236 390 214 . 301 832 618 349 1295 729 753 470 407 540 Initial 606 | . 3 27 25 295 . 91 61 . . 105 465 167 121 606 303 390 153 222 Average 273 | 1 98 41 467 123 100 186 113 . 111 371 493 317 438 458 522 346 289 364 Maximum Alert Level 4 | . 1 . 3 1 1 1 1 . 1 3 2 1 4 3 3 2 2 2 Low Security (%) 40 | 100 91 100 11 70 93 56 88 . 76 13 . 10 55 . . . 11 . Level 1 35 | . 8 . 18 29 6 43 11 . 23 50 . 90 4 53 26 70 82 50 Level 2 20 | . . . 58 . . . . . . 29 100 . 8 40 66 29 5 49 Level 3 3 | . . . 11 . . . . . . 7 . . 20 6 6 . . . Level 4 . | . . . . . . . . . . . . . 10 . . . . . Level 5 . | . . . . . . . . . . . . . . . . . . . High Security . | . . . . . . . . . . . . . . . . . . . Max Security . | . . . . . . . . . . . . . . . . . . . Squads Dispatched 60 | . 3 . 5 . 1 4 . . 11 7 . . 5 3 4 6 10 1 Investigation 11 | . 2 . . . . . . . 2 3 . . . . 1 3 . . Extermination 10 | . . . . . . . . . 3 . . . . 2 1 . 4 . Reinforcement 28 | . 1 . 5 . . 3 . . 3 3 . . 5 . 1 3 3 1 Assault 3 | . . . . . . . . . . 1 . . . 1 1 . . . Garrison 8 | . . . . . 1 1 . . 3 . . . . . . . 3 . Intercept . | . . . . . . . . . . . . . . . . . . . Searches Triggered 1 | . . . . . . . . . . . . . . . . . . 1 Construction Impeded 6 | . . . . . . . . . 2 2 . . 1 . . . 1 . Haulers Reinforced 3 | . . . . . . . . . . . . . 1 . . 2 . . Active Scanning Responses . | . . . . . . . . . . . . . . . . . . . Cargo Convoy Interrupts . | . . . . . . . . . . . . . . . . . . . Stealth | -11 -10 -10 -9 -9 -8 -8 -8 -8 -6 -6 -6 -6 -6 -5 -4 -3 -3 -3 --------- Run | Yrd Mat Min Mat Min Mat Sto Rec Scr Fac Ext Cet Arc Hub Fac Fac Res Qua Sec Distress Signals 28 | . 2 . 5 . 3 . . . 2 2 2 1 1 . . 7 . 3 Communications Jammed 71 | . . . . . . . . . . . . . . 24 1 1 45 . Distress Signals 71 | . . . . . . . . . . . . . . 24 1 1 45 . Times Spotted 408 | . 19 5 48 . 27 20 14 . 40 52 9 4 17 35 25 25 36 32 Peak Tracking Total 10 | . 5 3 5 . 4 4 4 . 6 6 5 2 4 7 7 6 7 10 Tactical Retreats 28 | . . . 2 . 3 . . . 7 1 . . 2 3 2 . 2 6 Traps | -11 -10 -10 -9 -9 -8 -8 -8 -8 -6 -6 -6 -6 -6 -5 -4 -3 -3 -3 ------- Run | Yrd Mat Min Mat Min Mat Sto Rec Scr Fac Ext Cet Arc Hub Fac Fac Res Qua Sec Traps Triggered 12 | . 3 . . . . 1 . . 2 3 . . . 1 . 1 1 . Indirectly . | . . . . . . . . . . . . . . . . . . . Trap Hack Attempts . | . . . . . . . . . . . . . . . . . . . Triggered . | . . . . . . . . . . . . . . . . . . . Disarmed . | . . . . . . . . . . . . . . . . . . . Reprogrammed . | . . . . . . . . . . . . . . . . . . . Reused . | . . . . . . . . . . . . . . . . . . . Traps Extracted . | . . . . . . . . . . . . . . . . . . . Installed . | . . . . . . . . . . . . . . . . . . . Triggered . | . . . . . . . . . . . . . . . . . . . Machines | -11 -10 -10 -9 -9 -8 -8 -8 -8 -6 -6 -6 -6 -6 -5 -4 -3 -3 -3 ---------- Run | Yrd Mat Min Mat Min Mat Sto Rec Scr Fac Ext Cet Arc Hub Fac Fac Res Qua Sec Machines Disabled 45 | . . . 5 . 3 1 1 . 7 8 . 2 5 3 5 . 3 2 Max in Single Turn 4 | . . . 3 . 1 1 1 . 4 1 . 1 3 1 1 . 1 1 Garrison Access 3 | . . . . . . 1 . . . . . . . . . 2 . . Network Hub 1 | . . . . . . . . . . . . . 1 . . . . . Machines Repaired . | . . . . . . . . . . . . . . . . . . . Machines Dismantled . | . . . . . . . . . . . . . . . . . . . Machines Sabotaged . | . . . . . . . . . . . . . . . . . . . Overloaded Fab Kills . | . . . . . . . . . . . . . . . . . . . Hacking | -11 -10 -10 -9 -9 -8 -8 -8 -8 -6 -6 -6 -6 -6 -5 -4 -3 -3 -3 --------- Run | Yrd Mat Min Mat Min Mat Sto Rec Scr Fac Ext Cet Arc Hub Fac Fac Res Qua Sec Machines Accessed 71 | . 6 . 6 1 4 7 5 3 7 8 3 . 2 3 2 3 5 6 Terminals 55 | . 6 . 6 . 4 6 1 . 5 8 3 . 2 2 . 1 5 6 Fabricators 2 | . . . . . . . . . 1 . . . . 1 . . . . Repair Stations . | . . . . . . . . . . . . . . . . . . . Recycling Units 6 | . . . . . . . 4 . 1 . . . . . 1 . . . Scanalyzers . | . . . . . . . . . . . . . . . . . . . Garrison Access 4 | . . . . . . 1 . . . . . . . . 1 2 . . Total Hacks 191 | . 21 . 16 1 8 18 9 22 15 20 5 . 5 15 3 5 14 14 Successful 101 | . 14 . 5 1 5 11 7 22 9 4 1 . . 9 1 2 4 6 Failed 90 | . 7 . 11 . 3 7 2 . 6 16 4 . 5 6 2 3 10 8 Catastrophic 22 | . 1 . 1 . 1 1 . . 2 3 2 . 2 1 1 1 5 1 Database Lockouts . | . . . . . . . . . . . . . . . . . . . Manual 80 | . 11 . 10 . 6 11 5 . 7 5 1 . 4 7 1 . 3 9 Terminals 145 | . 21 . 16 . 8 17 2 . 11 20 5 . 5 11 . 1 14 14 Fabricators 6 | . . . . . . . . . 2 . . . . 4 . . . . Repair Stations . | . . . . . . . . . . . . . . . . . . . Recycling Units 10 | . . . . . . . 7 . 2 . . . . . 1 . . . Scanalyzers . | . . . . . . . . . . . . . . . . . . . Garrison Access 7 | . . . . . . 1 . . . . . . . . 2 4 . . Terminal Hacks 59 | . 8 . 2 1 2 7 . 22 3 3 1 . . 4 . . 2 4 Record 22 | . . . . . . . . 21 . . 1 . . . . . . . Robot Analysis 2 | . 1 . 1 . . . . . . . . . . . . . . . Prototype ID Bank 1 | . 1 . . . . . . . . . . . . . . . . . Open Door 9 | . . . . 1 . 2 . . 1 2 . . . . . . 1 2 Branch Access Points 3 | . 1 . 1 . 1 . . . . . . . . . . . . . Alert Level 3 | . . . . . . . . . 1 . . . . 1 . . 1 . Unreport Threat 7 | . . . . . 1 2 . . 1 1 . . . 2 . . . . Locate Traps 1 | . . . . . . . . . . . . . . 1 . . . . Dispatch Records 1 | . . . . . . 1 . . . . . . . . . . . . Maintenance Status 1 | . 1 . . . . . . . . . . . . . . . . . Patrol Status 1 | . 1 . . . . . . . . . . . . . . . . . Transport Status 1 | . 1 . . . . . . . . . . . . . . . . . Assault Status 1 | . 1 . . . . . . . . . . . . . . . . . Recall Reinforcements 1 | . . . . . . 1 . . . . . . . . . . . . Hauler Manifests 1 | . . . . . . 1 . . . . . . . . . . . . Registered Components 1 | . 1 . . . . . . . . . . . . . . . . . Derelict Proto ID Bank 1 | . . . . . . . . 1 . . . . . . . . . . Activate Exoskeleton 2 | . . . . . . . . . . . . . . . . . . 2 Fabricator Hacks 3 | . . . . . . . . . 1 . . . . 2 . . . . Network Status 2 | . . . . . . . . . 1 . . . . 1 . . . . Build 1 | . . . . . . . . . . . . . . 1 . . . . Repair Station Hacks . | . . . . . . . . . . . . . . . . . . . Recycling Unit Hacks 5 | . . . . . . . 4 . 1 . . . . . . . . . Report Inventory 3 | . . . . . . . 3 . . . . . . . . . . . Retrieve Components 2 | . . . . . . . 1 . 1 . . . . . . . . . Scanalyzer . | . . . . . . . . . . . . . . . . . . . Garrison Access Hacks 3 | . . . . . . 1 . . . . . . . . . 2 . . Seal Access 3 | . . . . . . 1 . . . . . . . . . 2 . . Unauthorized Hacks 31 | . 6 . 3 . 3 3 3 . 4 1 . . . 3 1 . 2 2 Terminals 25 | . 6 . 3 . 3 3 . . 2 1 . . . 3 . . 2 2 Track 1 | . . . . . . . . . . . . . . . . . . 1 Assimilate 1 | . . . . . . . . . . . . . . 1 . . . . Botnet 21 | . 5 . 3 . 3 3 . . 2 1 . . . 1 . . 2 1 Operators 2 | . 1 . . . . . . . . . . . . 1 . . . . Fabricators 1 | . . . . . . . . . 1 . . . . . . . . . Download 1 | . . . . . . . . . 1 . . . . . . . . . Repair Stations 2 | . . . . . . . . . 1 . . . . . 1 . . . Recycling Units 3 | . . . . . . . 3 . . . . . . . . . . . Tunnel 3 | . . . . . . . 3 . . . . . . . . . . . Scrapoids 2 | . . . . . . . . . 1 . . . . . 1 . . . Scanalyzers . | . . . . . . . . . . . . . . . . . . . Garrison Access . | . . . . . . . . . . . . . . . . . . . Data Cores Recovered 1 | . . . . . 1 . . . . . . . . . . . . . Used . | . . . . . . . . . . . . . . . . . . . Hacking Detections 50 | . 4 . 6 . 4 5 1 . 5 7 3 . 2 3 1 2 4 3 Full Trace Events 3 | . . . . . . . . . . 3 . . . . . . . . Feedback Events . | . . . . . . . . . . . . . . . . . . . Feedback Blocked . | . . . . . . . . . . . . . . . . . . . Robot Schematics Acquired . | . . . . . . . . . . . . . . . . . . . Robots Built . | . . . . . . . . . . . . . . . . . . . Authchips . | . . . . . . . . . . . . . . . . . . . Time . | . . . . . . . . . . . . . . . . . . . Total Robot Build Rating . | . . . . . . . . . . . . . . . . . . . Part Schematics Acquired 1 | . . . . . . . . . . . . . . . . . 1 . Parts Built 1 | . . . . . . . . . . . . . . 1 . . . . Authchips . | . . . . . . . . . . . . . . . . . . . Time 53 | . . . . . . . . . . . . . . 53 . . . . Total Part Build Rating 6 | . . . . . . . . . . . . . . 6 . . . . Parts Repaired . | . . . . . . . . . . . . . . . . . . . Time . | . . . . . . . . . . . . . . . . . . . Parts Recycled . | . . . . . . . . . . . . . . . . . . . Recycled Matter . | . . . . . . . . . . . . . . . . . . . Retrieved Matter . | . . . . . . . . . . . . . . . . . . . Retrieved Components 9 | . . . . . . . 9 . . . . . . . . . . . Parts Scanalyzed . | . . . . . . . . . . . . . . . . . . . Part Schematics Acquired . | . . . . . . . . . . . . . . . . . . . Parts Damaged . | . . . . . . . . . . . . . . . . . . . Bothacking | -11 -10 -10 -9 -9 -8 -8 -8 -8 -6 -6 -6 -6 -6 -5 -4 -3 -3 -3 ------------ Run | Yrd Mat Min Mat Min Mat Sto Rec Scr Fac Ext Cet Arc Hub Fac Fac Res Qua Sec Used RIF Installer . | . . . . . . . . . . . . . . . . . . . Robots Hacked . | . . . . . . . . . . . . . . . . . . . Non-combat . | . . . . . . . . . . . . . . . . . . . Combat . | . . . . . . . . . . . . . . . . . . . Robot Hacks Applied . | . . . . . . . . . . . . . . . . . . . Relay Couplers Released . | . . . . . . . . . . . . . . . . . . . Fabnet Peak Effective % . | . . . . . . . . . . . . . . . . . . . Robots Rewired 27 | . . . . . . . 10 . . 17 . . . . . . . . Allies Hacked . | . . . . . . . . . . . . . . . . . . . Hacks Repelled . | . . . . . . . . . . . . . . . . . . . Allies | -11 -10 -10 -9 -9 -8 -8 -8 -8 -6 -6 -6 -6 -6 -5 -4 -3 -3 -3 -------- Run | Yrd Mat Min Mat Min Mat Sto Rec Scr Fac Ext Cet Arc Hub Fac Fac Res Qua Sec Total Allies 57 | . . . . . . 10 10 . 5 22 5 . . . 5 . . . Largest Group 11 | . . . . . . 10 7 7 7 11 11 7 5 . 5 . . . Highest-Rated Group 765 | . . . . . . 173 129 129 149 470 765 692 437 . 235 . . . Highest-Rated Ally 159 | . . . . . . 29 27 27 31 159 159 159 96 . 47 . . . Total Orders 14 | . . . . 2 5 2 . 2 . 2 . . 1 . . . . . STAY 3 | . . . . . . 1 . 1 . 1 . . . . . . . . FOLLOW 4 | . . . . 1 . 1 . 1 . 1 . . . . . . . . GUARD 1 | . . . . . . . . . . . . . 1 . . . . . EXPLORE 1 | . . . . 1 . . . . . . . . . . . . . . RETURN 5 | . . . . . 5 . . . . . . . . . . . . . Ally Attacks 651 | . . . . . . 112 22 . 46 267 69 11 72 . 52 . . . Total Damage 14183 | . . . . . . 1478 318 . 714 5300 2361 528 2546 . 938 . . . Kills 98 | . . . . . . 18 5 . 5 29 11 4 17 . 9 . . . Allies Corrupted 3 | . . . . . . . . . . . . . 3 . . . . . Allies Melted . | . . . . . . . . . . . . . . . . . . . Intel | -11 -10 -10 -9 -9 -8 -8 -8 -8 -6 -6 -6 -6 -6 -5 -4 -3 -3 -3 ------- Run | Yrd Mat Min Mat Min Mat Sto Rec Scr Fac Ext Cet Arc Hub Fac Fac Res Qua Sec Robot Analysis Total 2 | . 1 . 1 . . . . . . . . . . . . . . . Derelict Logs Recovered 3 | . . 2 . 1 . . . . . . . . . . . . . . Drone Launches 11 | . . . . 1 5 1 1 . 3 . . . . . . . . . Drone Recoveries 7 | . . . . . 6 . . . 1 . . . . . . . . . Exploration | -11 -10 -10 -9 -9 -8 -8 -8 -8 -6 -6 -6 -6 -6 -5 -4 -3 -3 -3 ------------- Run | Yrd Mat Min Mat Min Mat Sto Rec Scr Fac Ext Cet Arc Hub Fac Fac Res Qua Sec Turns Passed 27131 | 80 1019 762 1695 1369 1488 1710 1284 5926 1671 4311 518 160 301 1274 718 1049 1429 367 Spaces Moved 11766 | 43 492 270 800 556 516 632 454 2083 730 2289 246 86 149 427 295 548 605 545 Core 236 | 3 1 . . . . . . 94 . . . . . . . . . 138 Treads 6664 | 40 284 2 175 556 516 632 454 1989 302 . 60 20 41 281 295 548 469 . Legs 106 | . . 106 . . . . . . . . . . . . . . . . Wheels 4217 | . 207 162 625 . . . . . 428 2289 186 66 108 146 . . . . Hover 543 | . . . . . . . . . . . . . . . . . 136 407 Flight . | . . . . . . . . . . . . . . . . . . . Fastest Speed 50 | 50 130 130 116 240 240 235 235 50 130 130 140 150 150 140 160 155 58 50 Average Speed 182 | 152 171 248 154 240 240 238 235 225 165 144 165 170 174 211 160 159 150 58 Slowest Speed 680 | 160 320 680 240 240 320 240 235 240 240 150 240 240 240 240 160 161 248 100 Overloaded Moves . | . . . . . . . . . . . . . . . . . . . Propulsion Burnouts . | . . . . . . . . . . . . . . . . . . . Robots Hopped . | . . . . . . . . . . . . . . . . . . . Cave-ins Triggered 1 | . . . . . . 1 . . . . . . . . . . . . Teleports 1 | . . . . . . . . . . . . . . . . . . 1 Exploration Rate (%) 55 | 3 82 58 72 94 64 82 62 86 18 95 68 71 29 17 10 19 73 51 Regions Visited 18 Branch Regions 11 Pre-discovered Areas 9 | . . 1 . 1 . . 3 4 . . . . . . . . . . Known Exits Taken 5 | . 1 . 1 1 1 . . . . . . . . . 1 . . . Unknown Exits Taken 13 | 1 . 1 . . . 1 1 1 1 1 1 1 1 1 . 1 1 . Scrap Searched 5 | . . 1 . 1 . . . 3 . . . . . . . . . . Spaces Dug 31 | . . . . . 5 . . . 4 . . . . 4 8 2 4 4 Terrain Destroyed 540 | . . . 76 35 41 38 41 . 58 21 1 2 174 21 18 4 6 4 Melee 16 | . . . . . 5 . . . 4 . . . . 4 . . 3 . Projectile 66 | . . . . . . . 3 . 8 14 1 2 8 1 18 4 3 4 AOE 458 | . . . 76 35 36 38 38 . 46 7 . . 166 16 . . . . Terrain Rammed . | . . . . . . . . . . . . . . . . . . . Walls Destroyed . | . . . . . . . . . . . . . . . . . . . Machines Disabled . | . . . . . . . . . . . . . . . . . . . Actions | -11 -10 -10 -9 -9 -8 -8 -8 -8 -6 -6 -6 -6 -6 -5 -4 -3 -3 -3 --------- Run | Yrd Mat Min Mat Min Mat Sto Rec Scr Fac Ext Cet Arc Hub Fac Fac Res Qua Sec Total 15833 | 53 583 321 1071 578 668 788 606 3314 1019 2961 343 95 168 667 428 671 910 589 Wait 2095 | . 11 13 80 9 54 101 6 1157 129 196 61 2 5 109 52 33 73 4 Move 11748 | 42 491 269 799 555 515 631 453 2082 729 2288 245 85 148 426 294 547 604 545 Hop . | . . . . . . . . . . . . . . . . . . . Pick Up 189 | 4 16 1 31 1 7 2 1 37 13 23 8 2 2 9 5 15 11 1 Fast Attach 105 | 6 4 4 7 1 7 4 2 4 8 4 8 2 . 6 3 11 15 9 Attach 89 | . 4 3 10 . 3 2 3 6 15 8 1 . . 9 3 4 14 4 Detach 30 | . 2 3 1 . 1 1 2 1 3 3 1 . . 2 . . 7 3 Swap 97 | . 2 1 8 2 14 13 7 4 13 12 . . . 11 1 6 3 . Drop 214 | . 3 . 21 2 18 9 9 22 14 35 11 2 2 9 3 23 25 6 Fire 836 | 1 50 27 114 8 44 25 34 . 86 103 8 2 11 82 64 32 136 9 Melee 112 | . . . . . 5 . . . 4 80 . . . 4 . . 19 . Ram 13 | . . . . . . . . . . 4 . . . . . . 1 8 Kick . | . . . . . . . . . . . . . . . . . . . Crush 8 | . . . . . . . . . 3 . . . . . 3 . 2 . Escape Stasis 26 | . . . . . . . . . 2 24 . . . . . . . . Rewire 271 | . . . . . . . 89 1 . 181 . . . . . . . . Trap . | . . . . . . . . . . . . . . . . . . . Miscellaneous . | . . . . . . . . . . . . . . . . . . . Route ------- -11/Scrapyard -10/Materials (discovered 5 exits: *Mat x3 / *Min x2) -10/Mines -9/Materials (discovered 3 exits: *Mat x2 / *Min) -9/Mines -8/Materials (discovered 3 exits: *Fac x2 / *Sto) -8/Storage (discovered 2 exits: *Fac / *Rec) -8/Recycling -8/Scraptown (discovered 2 exits: *Fac x2) -6/Factory -6/Extension (discovered 3 exits: *Fac x2 / *Cet) -6/Cetus (discovered 2 exits: *Fac / [*Arc]) -6/Archives (discovered 2 exits: *Hub x2) -6/Hub_04(d) -5/Factory -4/Factory (discovered 3 exits: *Res x2 / [*Arm]) -3/Research -3/Quarantine -3/Section 7 History --------- Turn | Location | Event 4 | -11/Scrapyard | Discovered new exit (range 16) 81 | -11/Scrapyard | Entered Materials 310 | -10/Materials | Build established: Mutant 404 | -10/Materials | Identified exit to Mines 555 | -10/Materials | Discovered new exit (range 16) 801 | -10/Materials | Discovered new exit (range 16) 967 | -10/Materials | Discovered new exit (range 11) 1100 | -10/Materials | Entered Mines 1110 | -10/Mines | Core integrity fell below 50% 1165 | -10/Mines | Lost 4 parts (1p2n1w) 1527 | -10/Mines | Learned Materials garrison access intel 1846 | -10/Mines | Discovered new exit (range 13) 1862 | -10/Mines | Entered Materials 1862 | -9/Materials | Evolved 2 slots: Propulsion x1, Weapon x1 2209 | -9/Materials | Discovered new exit (range 15) 2401 | -9/Materials | Build established: Skirmisher 2643 | -9/Materials | Discovered new exit (range 13) 2775 | -9/Materials | Build established: Gunner 2909 | -9/Materials | Discovered new exit (range 3) 3091 | -9/Materials | Identified exit to Mines 3348 | -9/Materials | Build established: Tank 3557 | -9/Materials | Entered Mines 3581 | -9/Mines | Learned Materials non-interactive machine intel 3914 | -9/Mines | Found the Drone Emporium 3976 | -9/Mines | Found Prototype Device 3976 | -9/Mines | Identified Sensor Drone Bay 4267 | -9/Mines | Build established: Gunner 4871 | -9/Mines | Discovered new exit (range 14) 4877 | -9/Mines | Learned location of Storage (-8) 4911 | -9/Mines | Identified exit to Materials 4926 | -9/Mines | Entered Materials 4926 | -8/Materials | Accompanied by 1 ally 4926 | -8/Materials | Evolved 2 slots: Utility x2 4927 | -8/Materials | Loaded intel: 55 non-interactive machine locations 4928 | -8/Materials | Loaded intel: 1 garrison access location 5239 | -8/Materials | Build established: Tank 5596 | -8/Materials | Discovered new exit (range 7) 5624 | -8/Materials | Identified exit to Factory 5919 | -8/Materials | Identified exit to Storage 5981 | -8/Materials | Discovered exit to Factory (range 11) 6392 | -8/Materials | Garrison activated, responded to threat 6414 | -8/Materials | Entered Storage 6567 | -8/Storage | Assisted by bots powering up and referring to "LRC-V3" 6796 | -8/Storage | Garrison activated, responded to threat 6875 | -8/Storage | Build established: Commander-Tank 7638 | -8/Storage | Crushed by falling debris 7655 | -8/Storage | Discovered exit to Factory (range 15) 7689 | -8/Storage | Lost 5 allies 8111 | -8/Storage | Used back door to open Recycling access 8111 | -8/Storage | Discovered new exit (range 5) 8117 | -8/Storage | Build established: Scavenger-Tank 8124 | -8/Storage | Entered Recycling 8124 | -8/Recycling | Accompanied by 4 allies 8351 | -8/Recycling | Lost 3 allies 8572 | -8/Recycling | P-60 Hacker assimilated allied Bruiser 3a 8580 | -8/Recycling | Core integrity fell below 50% 9001 | -8/Recycling | Build established: Commander-Tank 9347 | -8/Recycling | Scanned before Scraplab entrance 9380 | -8/Recycling | Entered Scraplab 9399 | -8/Recycling | Discovered new exit (range 2) 9408 | -8/Recycling | Entered Scraptown 9408 | -8/Scraptown | Accompanied by 7 allies 9620 | -8/Scraptown | Build established: Commander-Mutant 9967 | -8/Scraptown | Discovered new exit (range 11) 10202 | -8/Scraptown | Visited Supply Room 10263 | -8/Scraptown | Visited UFD Registry 10263 | -8/Scraptown | Registered with UFD as "Smoothshaft" 10636 | -8/Scraptown | Visited Science Testing Area 10676 | -8/Scraptown | Visited Junk Repository 10776 | -8/Scraptown | Visited Science Guys 11098 | -8/Scraptown | Visited Scrapoid Research Area 11193 | -8/Scraptown | Visited Scrap Suit Storage 11236 | -8/Scraptown | Visited Derelict Rescue Squad 11262 | -8/Scraptown | Found DRS Beacon 11266 | -8/Scraptown | Found DRS Beacon 11309 | -8/Scraptown | Visited Junk Repository 11347 | -8/Scraptown | Visited Botcube Research 11371 | -8/Scraptown | Found Botcube 11419 | -8/Scraptown | Visited Abandonware Association 11443 | -8/Scraptown | Learned abandonware demo "REPAIR.EXE" 11443 | -8/Scraptown | Learned abandonware demo "REBOOT5.EXE" 11509 | -8/Scraptown | Visited Cartography Club 11755 | -8/Scraptown | Found Surveybot 17 Chip 12826 | -8/Scraptown | Found DRS Beacon 13328 | -8/Scraptown | Learned location of Recycling (-8) 13328 | -8/Scraptown | Learned 8 Factory zone layouts 13328 | -8/Scraptown | Learned 4 Access zone layouts 13328 | -8/Scraptown | Learned 8 Access zone layouts 13328 | -8/Scraptown | Learned 12 Upper Caves zone layouts 13328 | -8/Scraptown | Learned 8 Proximity Caves zone layouts 13328 | -8/Scraptown | Learned 24 Proximity Caves zone layouts 13328 | -8/Scraptown | Learned Storage emergency access door positions 13328 | -8/Scraptown | Learned location of 3 exits from Lower Caves 13328 | -8/Scraptown | Learned location of 2 exits from Proximity Caves 15216 | -8/Scraptown | Build established: Commander-Tank 15275 | -8/Scraptown | Found Scrap Suit 15286 | -8/Scraptown | Found Scrap Suit 15318 | -8/Scraptown | Discovered new exit (range 5) 15334 | -8/Scraptown | Entered Factory 15334 | -6/Factory | Accompanied by 7 allies 15334 | -6/Factory | Evolved 4 slots: Power x1, Propulsion x1, Utility x2 15546 | -6/Factory | Lost 6 allies 15988 | -6/Factory | Lost 5 parts (2n1u2w) 16151 | -6/Factory | Scrapoids reinforcements arrived? 16240 | -6/Factory | Found Scrap Suit 16261 | -6/Factory | Lost 5 allies 16653 | -6/Factory | Build established: Scavenger-Scrapper 17000 | -6/Factory | Discovered new exit (range 6) 17005 | -6/Factory | Entered Extension 17646 | -6/Extension | Botcube activated 17656 | -6/Extension | Botcube completed mutation into legged form (unarmed). 17755 | -6/Extension | Disrupted transfer network 18006 | -6/Extension | Build established: Commander-Tank 18031 | -6/Extension | Spotted B-75 Beast 18055 | -6/Extension | Spotted B-75 Beast 18067 | -6/Extension | Allies destroyed B-75 Beast 18216 | -6/Extension | Rescued a captive Derelict 18372 | -6/Extension | Build established: Scavenger-Tank 18820 | -6/Extension | Found Botcube 19046 | -6/Extension | Discovered new exit (range 3) 19450 | -6/Extension | Build established: Scavenger-Mutant 19821 | -6/Extension | Build established: Scavenger-Tank 19915 | -6/Extension | Discovered new exit (range 10) 19917 | -6/Extension | Discovered new exit (range 6) 20512 | -6/Extension | Rescued a captive Derelict 20528 | -6/Extension | Build established: Commander-Tank 20723 | -6/Extension | Rescued A7 20855 | -6/Extension | First assault squad dispatched 20894 | -6/Extension | Botcube activated 20912 | -6/Extension | Botcube completed mutation into legged form, armed with 1 gun, 1 cannon. 21316 | -6/Extension | Entered Cetus 21316 | -6/Cetus | Accompanied by 11 allies (A7) 21321 | -6/Cetus | Acquired a Cetus Manufacturing Module code from A7 21336 | -6/Cetus | Spotted Cetus Guard 21336 | -6/Cetus | Spotted Cetus Guard 21339 | -6/Cetus | Spotted Cetus Guard 21339 | -6/Cetus | Spotted Cetus Guard 21346 | -6/Cetus | Allies destroyed Cetus Guard 21353 | -6/Cetus | Allies destroyed Cetus Guard 21358 | -6/Cetus | Allies destroyed Cetus Guard 21361 | -6/Cetus | Allies destroyed Cetus Guard 21388 | -6/Cetus | Lost 6 allies 21494 | -6/Cetus | Started Cetus Manufacturing Module 21519 | -6/Cetus | Manufactured an Enhanced Grunt 21544 | -6/Cetus | Manufactured an Enhanced Grunt 21569 | -6/Cetus | Manufactured an Enhanced Grunt 21580 | -6/Cetus | Discovered new exit (range 16) 21594 | -6/Cetus | Manufactured an Enhanced Grunt 21610 | -6/Cetus | Spotted Cetus Guard 21610 | -6/Cetus | Spotted Cetus Guard 21612 | -6/Cetus | Spotted Cetus Guard 21613 | -6/Cetus | Spotted Cetus Guard 21619 | -6/Cetus | Manufactured an Enhanced Grunt 21629 | -6/Cetus | Allies destroyed Cetus Guard 21635 | -6/Cetus | Allies destroyed Cetus Guard 21638 | -6/Cetus | Discovered new exit (range 16) 21641 | -6/Cetus | Allies destroyed Cetus Guard 21641 | -6/Cetus | Allies destroyed Cetus Guard 21662 | -6/Cetus | Met Revision 17 21665 | -6/Cetus | Lost 3 allies 21834 | -6/Cetus | Entered Archives 21834 | -6/Archives | Accompanied by 7 allies (A7) 21921 | -6/Archives | Build established: Scavenger-Tank 21944 | -6/Archives | Found Prototype Device 21944 | -6/Archives | Identified Exp. Thermal Shield 21953 | -6/Archives | Discovered new exit (range 16) 21970 | -6/Archives | Discovered new exit (range 16) 21994 | -6/Archives | Entered Hub_04(d) 21994 | -6/Hub_04(d) | Accompanied by 5 allies 22200 | -6/Hub_04(d) | Discovered new exit (range 15) 22245 | -6/Hub_04(d) | Network Hub disabled 22278 | -6/Hub_04(d) | Spotted Lightning 22295 | -6/Hub_04(d) | Entered Factory 22295 | -5/Factory | Evolved 2 slots: Utility x2 22320 | -5/Factory | Lost 4 allies 22671 | -5/Factory | Fabricated Adv. Drone Bay (x1) 22889 | -5/Factory | Build established: Scavenger-Mutant 23455 | -5/Factory | Discovered new exit (range 16) 23495 | -5/Factory | First assault squad dispatched 23567 | -5/Factory | System corruption reached 10% 23569 | -5/Factory | Entered another Factory area 23569 | -4/Factory | Evolved 2 slots: Propulsion x2 23570 | -4/Factory | Identified exit to Research 23751 | -4/Factory | Scrapoids reinforcements arrived? 23819 | -4/Factory | First assault squad dispatched 23822 | -4/Factory | Lost 5 allies 23878 | -4/Factory | Discovered new exit (range 9) 24287 | -4/Factory | Entered Research 24287 | -3/Research | Evolved 2 slots: Utility x2 24487 | -3/Research | Revision forces began assault on 0b10 24523 | -3/Research | Met up with Revision 17++ 24816 | -3/Research | Build established: Scavenger-Tank 24987 | -3/Research | Research terminal network offline 25307 | -3/Research | Discovered new exit (range 15) 25336 | -3/Research | Entered Quarantine 25371 | -3/Quarantine | Found Alien Slashing Weapon 25371 | -3/Quarantine | Identified Sigix Broadsword 25482 | -3/Quarantine | Found Alien Artifact 25482 | -3/Quarantine | Identified Terrabomb 25482 | -3/Quarantine | Used Terrabomb 25527 | -3/Quarantine | Found Gamma Bomb Array 25670 | -3/Quarantine | Build established: Scavenger-Mutant 25756 | -3/Quarantine | Met incapacitated Sigix Warrior 25756 | -3/Quarantine | Lockdown squad dispatched 25780 | -3/Quarantine | Spotted Lightning 25800 | -3/Quarantine | Spotted Lightning 25825 | -3/Quarantine | Spotted Lightning 25842 | -3/Quarantine | System corruption reached 10% 25864 | -3/Quarantine | Destroyed Lightning 25888 | -3/Quarantine | Destroyed Lightning 25912 | -3/Quarantine | Lost 3 parts (1p1u1w) 25920 | -3/Quarantine | Destroyed Lightning 25941 | -3/Quarantine | Found Prototype Device 25941 | -3/Quarantine | Identified Exp. Phase Shifter 25952 | -3/Quarantine | Found Prototype Processor 25952 | -3/Quarantine | Identified Exp. Targeting Computer 25996 | -3/Quarantine | System corruption reached 30% 26182 | -3/Quarantine | Scanned by Researcher 26184 | -3/Quarantine | Garrison activated, responded to threat 26388 | -3/Quarantine | Build established: Scavenger-Tank 26471 | -3/Quarantine | Lost 3 parts (3u) 26585 | -3/Quarantine | Found Quantum Capacitor 26718 | -3/Quarantine | Spotted Fortress 26762 | -3/Quarantine | Discovered new exit (range 6) 26765 | -3/Quarantine | Entered Section 7 26785 | -3/Section 7 | Found Alien Artifact 26785 | -3/Section 7 | Identified Core Reset Matrix 26785 | -3/Section 7 | Used Core Reset Matrix 26789 | -3/Section 7 | Sensed 19 artifacts in vicinity 26958 | -3/Section 7 | Build established: Scavenger-Mutant 26970 | -3/Section 7 | Spotted Executioner 26970 | -3/Section 7 | Spotted Executioner 27010 | -3/Section 7 | Lost 4 parts (1p1n2u) 27015 | -3/Section 7 | Search patrols dispatched 27036 | -3/Section 7 | Spotted Executioner 27036 | -3/Section 7 | Spotted Executioner 27043 | -3/Section 7 | Released all parts (7) 27044 | -3/Section 7 | Core integrity fell below 50% 27065 | -3/Section 7 | Found Matter Drive 27069 | -3/Section 7 | Found Transdimensional Reconstructor 27069 | -3/Section 7 | Warped through subspace 27110 | -3/Section 7 | Spotted Alpha 7 27111 | -3/Section 7 | Spotted Alpha 7 27114 | -3/Section 7 | Core integrity fell below 20% 27132 | -3/Section 7 | Destroyed by Y-72 Warden with Railgun Last Messages --------------- 27097_ Identified Exp. Myomer Leg. 27099_ Slammed into C-30 ARC. 27100_ C-30 ARC bursts open, deploying its payload. 27100_ S-43 Plague unfolds itself. 27100_ Slammed into S-43 Plague. 27101_ Acquired 34 matter. 27101_ Slammed into S-43 Plague. 27104_ W-44 Eye sends out distress signal. 27106_ Molecular Binding Bank disabled. 27117_ Acquired Imp. Gyrokinetic Inverter. 27118_ Slug penetrates Wall. 27121_ Connecting with Terminal... 27126_ Overload: Heat surge (+122). 27127_ Cld. Plasma Rifle destroyed. 27127_ U-05 Engineer builds a Wall. 27130_ Slammed into Y-72 Warden. 27130_ Exp. Myomer Leg destroyed. 27131_ Slammed into Y-72 Warden. 27132_ Penetrated by Slug. Map ----- +----------------------------------------------------+ | ????????????????"T + # #??????" | | ???????????????????# # """ #??????" | | ???????????????????# "/ """" #??????" | | ???????????????????# "%# """ #??????" | | ???????????????????# " %## " #??????" | | ? ?????????????????# """ ## #??????" | | " ?????????????????# """ ## #??????" | | " "????????????????# """ ###########??????" | | " "????????????????# """ #????????????????" | | ???????????????# """ #???????????????????? | | " ""???############# "" #????????????????????? | | " "??? " #????????????????????? | | " """? ####?????????????????? | | #?????????????????? | | #?????????????????? | | ###/################ #?????????????????? | | ???????????????????# #?????????????????? | | ???????????????????# "" #?????????????????? | | ???????????????????# """ #?????????????????? | | ?????############### "T ######+##### ?????? | | ?????# """ +????? | | ?????# "" +????? | | ?????# +????? | | ?????# +????? | | ?????# #############+#############+##### #????? | | ?????# #??????????# Y@ #???????? ?????????? | | ###### #??????????# ggs s #????????? #????????? | | #??????????# """s#???????????????????? | | #?????????## " " #???????????????????? | | #?????????# """p#???????????????????? | | #?????????## #???????????????????? | | ###### #??????????# #???????????????????? | | ?????# #??????????# #???????????????????? | | ?????# ?????????# "" "" #???????????????????? | | ?????+ ???????# ""T"" #???????????????????? | | ?????# ??????# """ #???????????????????? | | ?????# ?????#########???????????????????? | | ?????# #######????????????????????????????????? | | ?????# #??????????????????????????????????????? | | ?????? #??????????????????????????????????????? | | ?????? #??????????????????????????????????????? | | ?????? ???????????????????????????????????????? | | ??????? ?????????????????????!???????????????????? | | ?????????????????????????????????????????????????? | | ?????????????????????????????????????????????????? | | ?????????????????????????????????????????????????? | | ?????????????????????????????????????????????????? | | ?????????????????????????????????????????????????? | | ?????????????????????????????????????????????????? | | ?????????????????????????????????????????????????? | +----------------------------------------------------+ Best States ------------- Heat Dissipation 98 Coolant Potential 100 Energy Generation 41 Energy Capacity 860 Matter Stores 300 Matter Capacity 300 Sight Range 18 Robot Scan Range 15 Terrain Scan Range 20 Terrain Scan Density 10 Jamming Range 14 Base Temperature (-) 200 Corruption Containment 8 Armor Coverage 1650 Resistance: TH 30 Resistance: EM 15 Core Shielding 30 Propulsion Shielding 33 Utility Shielding 66 Phase Shifting 20 Evasion (%) 73 Targeting Accuracy 26 Recoil Reduction 6 Energy Filtering 30 Particle Charging 25 Offensive Hacking 12 Item Schematics ----------------- None Robot Schematics ------------------ None Fabricated ------------ Adv. Drone Bay | x1 | -5/Factory | Preloaded Alien Tech Used ----------------- Sigix Broadsword Terrabomb Core Reset Matrix Matter Drive Transdimensional Reconstructor Achievements -------------- False Reunion No Signal Nope Revolutionary Research Tank Total Silence Turtlemind Challenges ------------ None Game ------ Seed SpliceProtonAutobeam Manual? 0 Play Time 04:16:01 Cumulative 70.5 hours Start 2024.11.18 @ 17:09:43 End 2024.11.19 @ 19:43:45 Sessions 3 Manual Loads 0 Difficulty Rogue Special Mode None Game No. 60 Rogue 60 Adventurer 0 Explorer 0 Win Type - Total 1 Types 1/0/0/0/0/0/0/0/0 Lore% 44 Gallery% 53 Achievement% 47 Wizard Run 0 Options --------- Layout 2 ASCII 0 Keyboard 0 Movement Numpad Keybinds 0 Fullscreen 1 Font 24/Smallcaps Map View 50x44 Zoom Use 0% Tactical HUD 1 Map Filters NONE Filters NONE Steam 1 RUN: 60b180f5-da50-489f-ae3c-a249dc3cf9d9